fUSD/lending_fUSD_20250620
["ID","MTS","AMOUNT","RATE_DAILY","PERIOD"]
[366694912,1750415237274,930.57198292,0.00025245,12]
[366694913,1750415238466,930.57198292,0.00025417,13]
[366694914,1750415238570,930.57198292,0.0002559,13]
[366694915,1750415239603,806.019216,0.00025422,8]
[366694916,1750415247483,151.0,0.00025489,7]
[366694917,1750415247897,151.0,0.0002549,7]
[366694918,1750415267642,7206.413036,0.00025562,7]
[366694919,1750415272845,7206.413036,0.00025562,7]
[366694921,1750415313678,229.0,0.00023226,7]
[366694922,1750415320180,151.98329804,0.00025,7]
[366694923,1750415320243,2496.698892,0.00025489,7]
[366694924,1750415320602,2496.698892,0.00025598,7]
[366694925,1750415324851,2496.698892,0.00025489,7]
[366694926,1750415325310,2496.698892,0.00025598,7]
[366694927,1750415329092,41281.3426,0.000194,2]
[366694928,1750415362788,151.0,0.00025562,7]
[366694929,1750415372420,226.355101,0.00025489,7]
[366694930,1750415372838,226.355101,0.0002549,7]
[366694931,1750415374512,151.0,0.00025489,7]
[366694932,1750415374964,250.38715,0.00025598,7]
[366694933,1750415376949,226.355101,0.00025489,7]
[366694934,1750415377669,226.355101,0.0002549,7]
[366694935,1750415385474,45519.1868769,0.000254,7]
[366694936,1750415397763,168.834443,0.00025489,7]
[366694937,1750415398276,168.834443,0.0002549,7]
[366694938,1750415401989,168.834443,0.00025489,7]
[366694939,1750415402026,775.47665253,0.000249,12]
[366694940,1750415402223,775.47665243,0.00025072,12]
[366694941,1750415402465,775.47665243,0.00025245,12]
[366694942,1750415402494,168.834443,0.0002549,7]
[366694943,1750415402712,775.47665243,0.00025417,13]
[366694944,1750415403008,775.47665243,0.0002559,13]
[366694945,1750415408340,2384.80046613,0.000256,7]
[366694946,1750415411892,205.0,0.00022801,2]
[366694952,1750415431421,-1474.257677,0.00023682,2]
[366694953,1750415431430,-300.0,0.00023901,2]
[366694954,1750415431439,-200.0,0.00023929,2]
[366694955,1750415431449,-1139.54664559,0.0002393,2]
[366694956,1750415431461,-411.8444199,0.0002393,2]
[366694957,1750415431530,-934.02541724,0.0002393,2]
[366694958,1750415431588,-2574.8914511,0.0002393,2]
[366694959,1750415431669,-500.0,0.0002393,2]
[366694960,1750415431685,-469.93266838,0.0002393,2]
[366694961,1750415431697,-1684.82891271,0.0002393,2]
[366694962,1750415431837,-1271.07150087,0.0002393,2]
[366694963,1750415431848,-499.85898421,0.0002393,2]
[366694964,1750415431858,-164.13,0.00023989,2]
[366694965,1750415431867,-61.81289665,0.00023999,2]
[366694990,1750415437880,-1138.18710335,0.00023999,2]
[366694992,1750415437891,-5728.51423023,0.00024,5]
[366694993,1750415437904,-638.97306609,0.00024,5]
[366694994,1750415437935,-867.35000001,0.00024,5]
[366694995,1750415437947,-162.61270367,0.00024,5]
[366694996,1750415437957,-229.0,0.0002401,2]
[366694997,1750415437967,-300.0,0.00024011,2]
[366694998,1750415437976,-229.0,0.00024013,2]
[366694999,1750415437986,-300.0,0.00024269,2]
[366695000,1750415437997,-229.0,0.0002427,2]
[366695001,1750415438007,-205.0,0.00024351,4]
[366695002,1750415438017,-229.0,0.00024409,2]
[366695003,1750415438027,-150.58,0.00024418,2]
[366695004,1750415438038,-150.58,0.0002443,2]
[366695005,1750415438048,-1000.0,0.00024434,2]
[366695006,1750415438058,-300.0,0.00024439,2]
[366695007,1750415438069,-9459.13430631,0.0002444,2]
[366695008,1750415438094,-419.229999,0.0002444,2]
[366695012,1750415439495,-611.63569469,0.0002444,2]
[366695013,1750415439506,-111.58364808,0.00024441,2]
[366695014,1750415439519,-38.99635192,0.00024441,2]
[366695015,1750415439530,-150.58,0.00024452,2]
[366695016,1750415439542,-298.31377655,0.00024458,2]
[366695017,1750415439585,-429.11662023,0.00024458,2]
[366695018,1750415439596,-150.58,0.00024463,2]
[366695019,1750415439606,-200.0,0.00024466,2]
[366695020,1750415439616,-242.09,0.0002447,2]
[366695021,1750415439626,-150.58,0.00024474,2]
[366695022,1750415439636,-150.58,0.00024485,2]
[366695023,1750415439647,-207.4,0.0002449,2]
[366695024,1750415439658,-150.58,0.00024496,2]
[366695025,1750415439669,-150.0,0.000245,2]
[366695026,1750415439680,-150.58,0.00024507,2]
[366695027,1750415439691,-150.58,0.00024518,2]
[366695028,1750415439702,-150.58,0.00024529,2]
[366695029,1750415439712,-150.58,0.00024541,2]
[366695030,1750415439723,-1000.0,0.000252,2]
[366695031,1750415439734,-1166.66666,0.0002523,2]
[366695032,1750415439744,-834.11677829,0.00025242,2]
[366695033,1750415439755,-229.0,0.0002529,2]
[366695034,1750415439765,-152.37836827,0.000253,2]
[366695035,1750415439779,-342.42280759,0.000253,2]
[366695036,1750415442257,-399.114272,0.00025489,7]
[366695037,1750415442280,-399.114272,0.00025489,7]
[366695038,1750415442305,-399.114272,0.0002549,7]
[366695039,1750415442327,-399.114272,0.0002549,7]
[366695040,1750415442495,-458.475,0.000253,2]
[366695041,1750415442508,-46.72382414,0.000253,2]
[366695042,1750415442519,-3477.18433901,0.0002534,5]
[366695043,1750415442529,-1296.61652362,0.00025348,2]
[366695044,1750415442538,-159.4653976,0.00025348,2]
[366695045,1750415442549,-1166.66667,0.0002535,2]
[366695046,1750415442559,-1000.0,0.00025359,2]
[366695047,1750415442569,-151.0,0.00025365,2]
[366695048,1750415442579,-322.9757762,0.00025365,2]
[366695049,1750415442589,-163.61274136,0.00025368,2]
[366695050,1750415442599,-5000.0,0.00025369,2]
[366695051,1750415442609,-502.27669913,0.00025379,2]
[366695052,1750415442618,-13147.47447033,0.0002538,2]
[366695053,1750415442630,-4252.41494104,0.0002538,2]
[366695054,1750415442643,-5550.87484017,0.0002538,2]
[366695055,1750415442655,-6177.18706618,0.0002538,2]
[366695056,1750415442667,-1467.98596892,0.0002538,2]
[366695057,1750415442688,-3014.60781336,0.0002538,2]
[366695058,1750415442698,-1296.61652358,0.00025413,2]
[366695059,1750415442708,-424.39933895,0.00025421,2]
[366695060,1750415442717,-424.39933895,0.00025436,2]
[366695061,1750415442727,-855.14,0.00025447,4]
[366695062,1750415442737,-490.0,0.00025447,4]
[366695063,1750415442747,-490.0,0.00025447,4]
[366695064,1750415442757,-941.29,0.00025447,4]
[366695065,1750415442766,-490.0,0.00025447,4]
[366695066,1750415442776,-1474.28,0.00025447,4]
[366695067,1750415442785,-1802.19807808,0.00025447,3]
[366695069,1750415442795,-130.11313522,0.00025447,3]
[366695073,1750415442828,8377.542912,0.000254,10]
[366695076,1750415442854,0.463,0.000254,10]
[366695078,1750415442867,-515.21,0.000254,10]
[366695080,1750415442879,-526.991629,0.000254,10]
[366695083,1750415442901,-553.50098755,0.000254,10]
[366695085,1750415442911,-1672.08494285,0.00025447,3]
[366695087,1750415442921,-2342.9140696,0.00025448,2]
[366695127,1750415450118,-216331.8313664,0.00025448,2]
[366695128,1750415450128,-1608.97662485,0.00025448,2]
[366695129,1750415450139,-643.59064994,0.00025449,2]
[366695130,1750415450149,-424.39933895,0.00025452,2]
[366695131,1750415450159,-500.0,0.00025456,2]
[366695132,1750415450169,-500.0,0.00025456,2]
[366695133,1750415450179,-198.73555131,0.00025456,2]
[366695134,1750415450190,-500.0,0.00025456,2]
[366695135,1750415450200,-500.0,0.00025456,2]
[366695136,1750415450210,-500.0,0.00025456,2]
[366695137,1750415450219,-500.0,0.00025456,2]
[366695138,1750415450230,-500.0,0.00025456,2]
[366695139,1750415450240,-500.0,0.00025456,2]
[366695140,1750415450250,-330.50607372,0.00025456,2]
[366695141,1750415450259,-500.0,0.00025456,2]
[366695142,1750415450270,-500.0,0.00025456,2]
[366695143,1750415450280,-500.0,0.00025456,2]
[366695144,1750415450290,-500.0,0.00025456,2]
[366695145,1750415450300,-500.0,0.00025456,2]
[366695146,1750415450310,-500.0,0.00025456,2]
[366695147,1750415450320,-500.0,0.00025456,2]
[366695148,1750415450330,-500.0,0.00025456,2]
[366695149,1750415450340,-710.39,0.00025457,4]
[366695150,1750415450350,-2657.88,0.00025457,4]
[366695151,1750415450360,-490.0,0.00025457,4]
[366695152,1750415450371,-951.97,0.00025457,4]
[366695153,1750415450380,-678.91,0.00025457,4]
[366695154,1750415450391,-982.82,0.00025457,4]
[366695155,1750415450400,-363.02396018,0.00025457,4]
[366695156,1750415450410,-934.95,0.00025457,4]
[366695157,1750415450420,-490.0,0.00025457,4]
[366695158,1750415450430,-490.0,0.00025457,4]
[366695159,1750415450440,-490.0,0.00025457,4]
[366695160,1750415450450,-1196.7,0.00025457,4]
[366695161,1750415450460,-905.13,0.00025457,4]
[366695162,1750415450470,-490.0,0.00025457,4]
[366695163,1750415450480,-733.67,0.00025457,4]
[366695164,1750415450490,-623.14,0.00025457,4]
[366695165,1750415450500,-858.58,0.00025457,4]
[366695166,1750415450511,-4996.22,0.00025457,4]
[366695167,1750415450521,-1411.02,0.00025457,4]
[366695168,1750415450532,-490.0,0.00025457,4]
[366695169,1750415450542,-490.0,0.00025457,4]
[366695170,1750415450552,-566.53,0.00025457,4]
[366695171,1750415450562,-673.04,0.00025457,4]
[366695172,1750415450572,-1000.0,0.00025457,4]
[366695173,1750415450582,-490.0,0.00025457,4]
[366695174,1750415450592,-500.0,0.00025457,4]
[366695175,1750415450603,-560.81,0.00025457,4]
[366695176,1750415450613,-5470.75,0.00025457,4]
[366695177,1750415450623,-490.0,0.00025457,4]
[366695178,1750415450635,-490.0,0.00025457,4]
[366695179,1750415450646,-490.0,0.00025457,4]
[366695180,1750415450657,-490.0,0.00025457,2]
[366695181,1750415450667,-2781.24,0.00025457,4]
[366695182,1750415450677,-608.76,0.00025457,4]
[366695183,1750415450687,-490.0,0.00025457,4]
[366695184,1750415450698,-622.46,0.00025457,4]
[366695185,1750415450708,-490.0,0.00025457,2]
[366695186,1750415450718,-2671.47,0.00025457,4]
[366695187,1750415450728,-490.0,0.00025457,4]
[366695188,1750415450738,-490.0,0.00025457,4]
[366695189,1750415450748,-807.14,0.00025457,4]
[366695190,1750415450873,-225.3139537,0.00025457,4]
[366695191,1750415450884,-490.0,0.00025457,4]
[366695192,1750415450895,-490.0,0.00025457,4]
[366695193,1750415450906,-154.57,0.00025458,2]
[366695194,1750415450917,-321.79532497,0.00025458,2]
[366695195,1750415450927,-321.79532497,0.00025459,2]
[366695196,1750415450938,-161.76,0.0002546,2]
[366695197,1750415450947,-424.39933895,0.00025467,2]
[366695198,1750415450957,-781751.32459801,0.00025468,4]
[366695199,1750415450967,-4589.80751392,0.00025468,4]
[366695200,1750415450977,-490.0,0.00025468,4]
[366695201,1750415450988,-490.0,0.00025468,4]
[366695202,1750415450998,-490.0,0.00025468,4]
[366695203,1750415451007,-191.54142883,0.00025468,4]
[366695204,1750415451017,-490.0,0.00025468,4]
[366695205,1750415451027,-490.0,0.00025468,4]
[366695206,1750415451039,-490.0,0.00025468,4]
[366695207,1750415451049,-490.0,0.00025468,4]
[366695208,1750415451059,-490.0,0.00025468,4]
[366695209,1750415451069,-490.0,0.00025468,4]
[366695210,1750415451079,-472.07626124,0.00025468,4]
[366695211,1750415451089,-490.0,0.00025468,4]
[366695212,1750415451099,-485.93343759,0.00025468,4]
[366695213,1750415451109,-525.64,0.00025468,4]
[366695214,1750415451120,-490.0,0.00025468,4]
[366695215,1750415451129,-490.0,0.00025468,4]
[366695216,1750415451139,-490.0,0.00025468,4]
[366695217,1750415451149,-435.86838166,0.00025468,4]
[366695218,1750415451158,-404.78245783,0.00025468,4]
[366695219,1750415451169,-490.0,0.00025468,4]
[366695220,1750415451178,-490.0,0.00025468,4]
[366695221,1750415451188,-824.86,0.00025468,4]
[366695222,1750415451197,-225.15054269,0.00025468,4]
[366695223,1750415451207,-490.0,0.00025468,4]
[366695224,1750415451218,-490.0,0.00025468,4]
[366695225,1750415451227,-490.0,0.00025468,4]
[366695226,1750415451237,-1042.35,0.00025468,4]
[366695227,1750415451247,-2063.423116,0.00025468,4]
[366695228,1750415451257,-159.469271,0.00025468,4]
[366695229,1750415451267,-1129.83,0.00025468,4]
[366695230,1750415451276,-490.0,0.00025468,4]
[366695231,1750415451286,-152.3464,0.00025468,4]
[366695232,1750415451296,-490.0,0.00025468,4]
[366695233,1750415451306,-2980.629608,0.00025468,4]
[366695234,1750415451316,-490.0,0.00025468,4]
[366695235,1750415451326,-1443.11,0.00025468,4]
[366695236,1750415451336,-6813.75,0.00025468,4]
[366695237,1750415451346,-490.0,0.00025468,4]
[366695238,1750415451355,-977.73,0.00025468,4]
[366695239,1750415451365,-1060.66,0.00025468,4]
[366695240,1750415451375,-1271.04,0.00025468,4]
[366695241,1750415451384,-490.0,0.00025468,4]
[366695242,1750415451394,-1687.17,0.00025468,4]
[366695243,1750415451404,-490.0,0.00025468,4]
[366695244,1750415451413,-490.0,0.00025468,4]
[366695245,1750415451423,-1425.44,0.00025468,4]
[366695246,1750415451432,-490.0,0.00025468,4]
[366695247,1750415451442,-1260.23,0.00025468,4]
[366695248,1750415451452,-490.0,0.00025468,4]
[366695249,1750415451461,-490.0,0.00025468,4]
[366695250,1750415451470,-535.62,0.00025468,4]
[366695251,1750415451480,-600.47,0.00025468,4]
[366695252,1750415451490,-490.0,0.00025468,4]
[366695253,1750415451500,-490.0,0.00025468,4]
[366695254,1750415451510,-7447.5,0.00025468,4]
[366695255,1750415451519,-490.0,0.00025468,4]
[366695256,1750415451528,-490.0,0.00025468,4]
[366695257,1750415451538,-998.98,0.00025468,4]
[366695258,1750415451548,-490.0,0.00025468,4]
[366695259,1750415451557,-1377.1,0.00025468,4]
[366695260,1750415451567,-490.0,0.00025468,4]
[366695261,1750415451576,-490.0,0.00025468,4]
[366695262,1750415451586,-4861.36,0.00025468,4]
[366695263,1750415451596,-1977.29,0.00025468,4]
[366695264,1750415451605,-490.0,0.00025468,4]
[366695265,1750415451614,-1276.4,0.00025468,4]
[366695266,1750415451624,-490.0,0.00025468,4]
[366695267,1750415451633,-2488.9,0.00025468,4]
[366695268,1750415451643,-2235.26,0.00025468,4]
[366695269,1750415451652,-1190.82,0.00025468,4]
[366695270,1750415451663,-712.91,0.00025468,4]
[366695271,1750415451672,-1879.2,0.00025468,4]
[366695272,1750415451682,-490.0,0.00025468,4]
[366695273,1750415451691,-3348.43,0.00025468,4]
[366695274,1750415451700,-2145.92,0.00025468,4]
[366695275,1750415451711,-3119.56,0.00025468,4]
[366695276,1750415451720,-3273.4,0.00025468,4]
[366695277,1750415451731,-490.0,0.00025469,4]
[366695278,1750415451741,-490.0,0.00025469,4]
[366695279,1750415451751,-490.0,0.00025469,4]
[366695280,1750415451761,-308.55217992,0.00025469,4]
[366695281,1750415451771,-490.0,0.00025469,4]
[366695282,1750415451780,-490.0,0.00025469,4]
[366695283,1750415451790,-490.0,0.00025469,4]
[366695284,1750415451799,-490.0,0.00025469,4]
[366695285,1750415451809,-490.0,0.00025469,4]
[366695286,1750415451818,-490.0,0.00025469,4]
[366695287,1750415451827,-490.0,0.00025469,4]
[366695288,1750415451837,-490.0,0.00025469,4]
[366695289,1750415451846,-1480.37,0.00025469,4]
[366695290,1750415451856,-490.0,0.00025469,4]
[366695291,1750415451865,-490.0,0.00025469,4]
[366695292,1750415451875,-492.35950672,0.00025469,4]
[366695293,1750415451885,-490.0,0.00025469,4]
[366695294,1750415451895,-1643.1,0.00025469,4]
[366695295,1750415451906,-490.0,0.00025469,4]
[366695296,1750415451916,-490.0,0.00025469,4]
[366695297,1750415451926,-490.0,0.00025469,4]
[366695298,1750415451936,-490.0,0.00025469,4]
[366695299,1750415451946,-565.51,0.00025469,4]
[366695300,1750415451956,-492.45,0.00025469,4]
[366695301,1750415451966,-490.0,0.00025469,4]
[366695302,1750415451976,-490.0,0.00025469,4]
[366695303,1750415451986,-490.0,0.00025469,4]
[366695304,1750415451996,-2032.33,0.00025469,4]
[366695305,1750415452006,-490.0,0.00025469,4]
[366695306,1750415452016,-490.0,0.00025469,4]
[366695307,1750415452028,-490.0,0.00025469,4]
[366695308,1750415452040,-880.4,0.00025469,4]
[366695309,1750415452051,-490.0,0.00025469,4]
[366695310,1750415452061,-490.0,0.00025469,4]
[366695311,1750415452071,-1088.85,0.00025469,4]
[366695312,1750415452081,-561.66,0.00025469,4]
[366695313,1750415452091,-490.0,0.00025469,4]
[366695314,1750415452101,-490.0,0.00025469,4]
[366695315,1750415452111,-848.08,0.00025469,4]
[366695316,1750415452121,-452.93237181,0.00025469,4]
[366695317,1750415452130,-490.0,0.00025469,4]
[366695318,1750415452139,-912.78,0.00025469,4]
[366695319,1750415452149,-1634.09,0.00025469,4]
[366695320,1750415452159,-1838.84,0.00025469,4]
[366695321,1750415452169,-895.29,0.00025469,4]
[366695322,1750415452179,-490.0,0.00025469,4]
[366695323,1750415452189,-669.38,0.00025469,4]
[366695324,1750415452199,-818.8,0.00025469,4]
[366695325,1750415452209,-490.0,0.00025469,4]
[366695326,1750415452219,-490.0,0.00025469,4]
[366695327,1750415452228,-1627.01,0.00025469,4]
[366695328,1750415452238,-490.0,0.00025469,4]
[366695329,1750415452248,-490.0,0.00025469,4]
[366695330,1750415452257,-490.0,0.00025469,4]
[366695331,1750415452266,-1078.58,0.00025469,4]
[366695332,1750415452275,-490.0,0.00025469,4]
[366695333,1750415452285,-994.67,0.00025469,4]
[366695334,1750415452295,-771.65,0.00025469,4]
[366695335,1750415452304,-490.0,0.00025469,4]
[366695336,1750415452314,-490.0,0.00025469,4]
[366695337,1750415452324,-490.0,0.00025469,4]
[366695338,1750415452334,-694.41,0.00025469,4]
[366695339,1750415452344,-679.99,0.00025469,4]
[366695340,1750415452354,-490.0,0.00025469,4]
[366695341,1750415452364,-2362.55,0.00025469,4]
[366695342,1750415452374,-490.0,0.00025469,4]
[366695343,1750415452383,-490.0,0.00025469,4]
[366695344,1750415452393,-490.0,0.00025469,4]
[366695345,1750415452403,-592.8,0.00025469,4]
[366695346,1750415452413,-490.0,0.00025469,4]
[366695347,1750415452423,-490.0,0.00025469,4]
[366695348,1750415452433,-490.0,0.00025469,4]
[366695349,1750415452444,-542.79,0.00025469,4]
[366695350,1750415452454,-1385.22,0.00025469,4]
[366695351,1750415452464,-1591.3,0.00025469,4]
[366695352,1750415452474,-490.0,0.00025469,4]
[366695353,1750415452484,-1073.69,0.00025469,4]
[366695354,1750415452493,-490.0,0.00025469,4]
[366695355,1750415452503,-616.36,0.00025469,4]
[366695356,1750415452513,-491.59646923,0.00025469,4]
[366695357,1750415452523,-490.0,0.00025469,4]
[366695358,1750415452532,-490.0,0.00025469,4]
[366695359,1750415452542,-490.0,0.00025469,4]
[366695360,1750415452552,-583.29,0.00025469,4]
[366695361,1750415452562,-490.0,0.00025469,4]
[366695362,1750415452573,-200.0,0.00025469,4]
[366695363,1750415452584,-1175.68,0.00025469,4]
[366695364,1750415452593,-1312.24,0.00025469,4]
[366695365,1750415452603,-1363.77,0.00025469,4]
[366695366,1750415452614,-490.0,0.00025469,4]
[366695367,1750415452623,-490.0,0.00025469,4]
[366695368,1750415452633,-770.8,0.00025469,4]
[366695369,1750415452642,-997.01,0.00025469,4]
[366695370,1750415452652,-989.39,0.00025469,4]
[366695371,1750415452663,-567.86,0.00025469,4]
[366695372,1750415452673,-1096.04,0.00025469,4]
[366695373,1750415452684,-1520.45,0.00025469,4]
[366695374,1750415452695,-490.0,0.00025469,4]
[366695375,1750415452705,-805.39,0.00025469,4]
[366695376,1750415452716,-490.0,0.00025469,4]
[366695377,1750415452727,-490.0,0.00025469,4]
[366695378,1750415452738,-490.0,0.00025469,4]
[366695379,1750415452749,-414.39238984,0.00025469,4]
[366695380,1750415452759,-596.59,0.00025469,4]
[366695381,1750415452769,-1428.58,0.00025469,4]
[366695382,1750415452779,-490.0,0.00025469,4]
[366695383,1750415452789,-490.0,0.00025469,4]
[366695384,1750415452799,-490.0,0.00025469,4]
[366695385,1750415452809,-5382.53,0.00025469,4]
[366695386,1750415452819,-490.0,0.00025469,4]
[366695387,1750415452829,-703.96,0.00025469,4]
[366695388,1750415452839,-490.0,0.00025469,4]
[366695389,1750415452849,-1601.56,0.00025469,4]
[366695390,1750415452859,-1669.54,0.00025469,4]
[366695391,1750415452870,-2721.61,0.00025469,4]
[366695392,1750415452879,-490.0,0.00025469,4]
[366695393,1750415452889,-490.0,0.00025469,4]
[366695394,1750415452901,-741.54,0.00025469,4]
[366695395,1750415452911,-669.76,0.00025469,4]
[366695396,1750415452921,-1225.01,0.00025469,4]
[366695397,1750415452930,-2422.36,0.00025469,4]
[366695398,1750415452939,-1005.68,0.00025469,4]
[366695399,1750415452951,-490.0,0.00025469,4]
[366695400,1750415452960,-2138.59,0.00025469,4]
[366695401,1750415452971,-490.0,0.00025469,4]
[366695402,1750415452980,-490.0,0.00025469,4]
[366695403,1750415452990,-998.16,0.00025469,4]
[366695404,1750415453001,-4396.87,0.00025469,4]
[366695405,1750415453011,-933.76,0.00025469,4]
[366695406,1750415453021,-897.22,0.00025469,4]
[366695407,1750415453035,-1489.74,0.00025469,4]
[366695408,1750415453046,-2632.99,0.00025469,4]
[366695409,1750415453057,-490.0,0.00025469,4]
[366695410,1750415453067,-2115.45,0.00025469,4]
[366695411,1750415453079,-1788.12,0.00025469,4]
[366695412,1750415453089,-969.59,0.00025469,4]
[366695413,1750415453098,-587.84,0.00025469,4]
[366695414,1750415453110,-490.0,0.00025469,4]
[366695415,1750415453121,-490.0,0.00025469,4]
[366695416,1750415453132,-747.47,0.00025469,4]
[366695417,1750415453142,-385.03096434,0.00025469,4]
[366695418,1750415453152,-621.87290286,0.00025469,4]
[366695419,1750415453162,-629.05,0.00025469,4]
[366695420,1750415453172,-1158.39,0.00025469,4]
[366695421,1750415453182,-4900.18,0.00025469,4]
[366695422,1750415453193,-490.0,0.00025469,4]
[366695423,1750415453206,-490.0,0.00025469,4]
[366695424,1750415453216,-1552.28,0.00025469,4]
[366695425,1750415453226,-490.0,0.00025469,4]
[366695426,1750415453236,-540.28,0.00025469,4]
[366695427,1750415453246,-490.0,0.00025469,4]
[366695428,1750415453256,-1986.49,0.00025469,4]
[366695429,1750415453266,-2142.56,0.00025469,4]
[366695430,1750415453278,-490.0,0.00025469,4]
[366695431,1750415453288,-675.46,0.00025469,4]
[366695432,1750415453298,-2131.24,0.00025469,4]
[366695433,1750415453308,-1335.47,0.00025469,4]
[366695434,1750415453318,-329.68577934,0.00025469,4]
[366695435,1750415453328,-3901.98,0.00025469,4]
[366695436,1750415453338,-894.67,0.00025469,4]
[366695437,1750415453348,-694.78,0.00025469,4]
[366695438,1750415453359,-748.02,0.00025469,4]
[366695439,1750415453369,-2210.45,0.00025469,4]
[366695440,1750415453379,-1823.65,0.00025469,4]
[366695441,1750415453389,-490.0,0.00025469,4]
[366695442,1750415453399,-1839.21,0.00025469,4]
[366695443,1750415453409,-951.3,0.00025469,4]
[366695444,1750415453419,-828.87,0.00025469,4]
[366695445,1750415453430,-490.0,0.00025469,4]
[366695446,1750415453440,-490.0,0.00025469,4]
[366695447,1750415453451,-828.66,0.00025469,4]
[366695448,1750415453461,-2336.71,0.00025469,4]
[366695449,1750415453472,-490.0,0.00025469,4]
[366695450,1750415453482,-1193.56,0.00025469,4]
[366695451,1750415453493,-490.0,0.00025469,4]
[366695452,1750415453504,-490.0,0.00025469,4]
[366695453,1750415453515,-490.0,0.00025469,4]
[366695454,1750415453526,-1201.91,0.00025469,4]
[366695455,1750415453536,-436.00541705,0.00025469,4]
[366695456,1750415453546,-1533.32,0.00025469,4]
[366695457,1750415453557,-490.0,0.00025469,4]
[366695458,1750415453567,-2402.13,0.00025469,4]
[366695459,1750415453577,-490.0,0.00025469,4]
[366695460,1750415453587,-2054.14,0.00025469,4]
[366695461,1750415453597,-490.0,0.00025469,4]
[366695462,1750415453608,-415.39248275,0.00025469,4]
[366695463,1750415453619,-1310.9,0.00025469,4]
[366695464,1750415453629,-1798.58,0.00025469,4]
[366695465,1750415453640,-502.13848685,0.00025473,2]
[366695466,1750415453651,-202.20932154,0.00025473,2]
[366695467,1750415453663,-500.0,0.00025473,2]
[366695468,1750415453674,-500.0,0.00025473,2]
[366695469,1750415453684,-500.0,0.00025473,2]
[366695470,1750415453695,-501.71581761,0.00025473,2]
[366695471,1750415453705,-500.0,0.00025473,2]
[366695472,1750415453715,-500.0,0.00025473,2]
[366695473,1750415453726,-159.96034359,0.00025473,2]
[366695474,1750415453736,-500.0,0.00025473,2]
[366695475,1750415453747,-371.74576429,0.00025473,2]
[366695476,1750415453758,-500.0,0.00025473,2]
[366695477,1750415453767,-500.0,0.00025473,2]
[366695478,1750415453778,-500.0,0.00025473,2]
[366695479,1750415453789,-500.0,0.00025473,2]
[366695480,1750415453799,-500.0,0.00025473,2]
[366695481,1750415453809,-1296.61652358,0.00025479,2]
[366695482,1750415453819,-490.0,0.00025479,4]
[366695483,1750415453830,-558.55,0.00025479,4]
[366695484,1750415453840,-490.0,0.00025479,4]
[366695485,1750415453851,-476.85633154,0.00025479,4]
[366695486,1750415453861,-490.0,0.00025479,4]
[366695487,1750415453872,-490.0,0.00025479,4]
[366695488,1750415453883,-490.0,0.00025479,4]
[366695489,1750415453893,-490.0,0.00025479,4]
[366695490,1750415453903,-490.0,0.00025479,4]
[366695491,1750415453913,-2237.34,0.00025479,4]
[366695492,1750415453925,-490.0,0.00025479,4]
[366695493,1750415453935,-490.0,0.00025479,4]
[366695494,1750415453944,-870.19,0.00025479,4]
[366695495,1750415453955,-1294.95,0.00025479,4]
[366695496,1750415453965,-860.83,0.00025479,4]